[Event "*** Titled Tuesday Blitz"]
[Site "Chess.com"]
[Date "2021.03.30"]
[Round "2"]
[White "Piccadilly123"]
[Black "MalyDominator"]
[Result "0-1"]
[WhiteElo "2300"]
[BlackElo "2483"]
[TimeControl "180+1"]
[EndTime "10:17:57 PDT"]
[Termination "MalyDominator won by resignation"]

1. e4 {[%clk 0:03:00.9]} 1... c5 {[%clk 0:02:59.3]} 2. c3 {[%clk 0:03:00.1]}
2... Nf6 {[%clk 0:02:58.9]} 3. e5 {[%clk 0:03:00.2]} 3... Nd5 {[%clk 0:02:59.1]}
4. d4 {[%clk 0:03:00.6]} 4... cxd4 {[%clk 0:02:59.3]} 5. Nf3 {[%clk 0:03:01.2]}
5... Nc6 {[%clk 0:02:59.1]} 6. cxd4 {[%clk 0:02:59.7]} 6... d6 {[%clk
0:02:59.1]} 7. Bc4 {[%clk 0:02:57.8]} 7... e6 {[%clk 0:02:59.5]} 8. O-O {[%clk
0:02:56.7]} 8... Be7 {[%clk 0:02:59.6]} 9. Nc3 {[%clk 0:02:53]} 9... Nxc3 {[%clk
0:02:58.6]} 10. bxc3 {[%clk 0:02:53.9]} 10... dxe5 {[%clk 0:02:58.9]} 11. dxe5
{[%clk 0:02:53.8]} 11... Qxd1 {[%clk 0:02:58.8]} 12. Rxd1 {[%clk 0:02:54.7]}
12... O-O {[%clk 0:02:58.9]} 13. Bb5 {[%clk 0:02:44.8]} 13... Rd8 {[%clk
0:02:57.3]} 14. Be3 {[%clk 0:02:41.2]} 14... Bd7 {[%clk 0:02:55.4]} 15. Rab1
{[%clk 0:02:30.5]} 15... Be8 {[%clk 0:02:41.8]} 16. Rxd8 {[%clk 0:02:19.1]}
16... Rxd8 {[%clk 0:02:41.1]} 17. Bxc6 {[%clk 0:02:19]} 17... Bxc6 {[%clk
0:02:39.3]} 18. Bxa7 {[%clk 0:02:19.6]} 18... Ra8 {[%clk 0:02:39]} 19. Be3
{[%clk 0:02:12.1]} 19... Rxa2 {[%clk 0:02:38.9]} 20. Nd4 {[%clk 0:02:12.4]}
20... Be4 {[%clk 0:02:33.7]} 21. Rd1 {[%clk 0:02:07.3]} 21... h6 {[%clk
0:02:30.6]} 22. f3 {[%clk 0:02:04.8]} 22... Bd5 {[%clk 0:02:25.8]} 23. Nb5
{[%clk 0:01:54.6]} 23... Rb2 {[%clk 0:02:18.2]} 24. Nd6 {[%clk 0:01:51.9]} 24...
Rc2 {[%clk 0:02:07.6]} 25. c4 {[%clk 0:01:22.8]} 25... Bxc4 {[%clk 0:01:26.6]}
26. Nxc4 {[%clk 0:01:03.4]} 26... Rxc4 {[%clk 0:01:26.3]} 27. Rd7 {[%clk
0:01:04]} 27... Bc5 {[%clk 0:01:15.7]} 28. Bxc5 {[%clk 0:00:52.3]} 28... Rxc5
{[%clk 0:01:16.6]} 29. Rxb7 {[%clk 0:00:52.4]} 29... Rxe5 {[%clk 0:01:16.5]} 30.
g4 {[%clk 0:00:47.7]} 30... Re2 {[%clk 0:00:54.1]} 31. h4 {[%clk 0:00:47.2]}
31... g6 {[%clk 0:00:40.4]} 32. Rb5 {[%clk 0:00:46.7]} 32... Kg7 {[%clk
0:00:40]} 33. h5 {[%clk 0:00:45.1]} 33... g5 {[%clk 0:00:38.7]} 34. Kf1 {[%clk
0:00:43.6]} 34... Ra2 {[%clk 0:00:37.3]} 35. Rb7 {[%clk 0:00:39.9]} 35... Kf6
{[%clk 0:00:36.8]} 36. Rc7 {[%clk 0:00:38.4]} 36... Rh2 {[%clk 0:00:33.2]} 37.
Kg1 {[%clk 0:00:35.4]} 37... Rd2 {[%clk 0:00:33]} 38. Kf1 {[%clk 0:00:35.1]}
38... Ra2 {[%clk 0:00:26.2]} 39. Rb7 {[%clk 0:00:33.4]} 39... Kg7 {[%clk
0:00:22.4]} 40. Rc7 {[%clk 0:00:30.8]} 40... Kg8 {[%clk 0:00:21.2]} 41. Rc8+
{[%clk 0:00:27.7]} 41... Kg7 {[%clk 0:00:21.4]} 42. Rc7 {[%clk 0:00:28.6]} 42...
e5 {[%clk 0:00:19.4]} 43. Re7 {[%clk 0:00:18.1]} 43... Kf6 {[%clk 0:00:18.6]}
44. Rb7 {[%clk 0:00:18.5]} 44... Ra4 {[%clk 0:00:16.4]} 45. Rb6+ {[%clk
0:00:18.8]} 45... Kg7 {[%clk 0:00:16.6]} 46. Kf2 {[%clk 0:00:14.8]} 46... Rf4
{[%clk 0:00:16.3]} 47. Ke3 {[%clk 0:00:14.7]} 47... e4 {[%clk 0:00:15.5]} 48.
fxe4 {[%clk 0:00:13.3]} 48... Rxg4 {[%clk 0:00:15.9]} 49. e5 {[%clk 0:00:10.8]}
49... Kf8 {[%clk 0:00:15.8]} 50. Rxh6 {[%clk 0:00:10.2]} 50... Rh4 {[%clk
0:00:15.4]} 51. Kf3 {[%clk 0:00:09.7]} 51... Kg7 {[%clk 0:00:15.4]} 52. Kg3
{[%clk 0:00:10.1]} 52... Kxh6 {[%clk 0:00:15.1]} 0-1

[Event "*** Titled Tuesday Blitz"]
[Site "Chess.com"]
[Date "2021.03.30"]
[Round "2"]
[White "Msb2"]
[Black "Szparu"]
[Result "1-0"]
[WhiteElo "2917"]
[BlackElo "2578"]
[TimeControl "180+1"]
[EndTime "10:17:58 PDT"]
[Termination "Msb2 won on time"]

1. d4 {[%clk 0:03:00.9]} 1... Nf6 {[%clk 0:02:37.1]} 2. Nf3 {[%clk 0:03:00.5]}
2... g6 {[%clk 0:02:29.2]} 3. Nc3 {[%clk 0:03:00.4]} 3... d5 {[%clk 0:02:28.4]}
4. Bf4 {[%clk 0:03:00.3]} 4... Bg7 {[%clk 0:02:26.1]} 5. e3 {[%clk 0:03:00.9]}
5... c5 {[%clk 0:02:23.2]} 6. Nb5 {[%clk 0:03:00.4]} 6... Na6 {[%clk 0:02:18.3]}
7. h3 {[%clk 0:02:59.7]} 7... O-O {[%clk 0:02:17.1]} 8. c3 {[%clk 0:02:59.9]}
8... Bd7 {[%clk 0:02:09.4]} 9. a4 {[%clk 0:03:00]} 9... Ne4 {[%clk 0:02:03]} 10.
Be2 {[%clk 0:02:41.1]} 10... Qb6 {[%clk 0:01:47.6]} 11. O-O {[%clk 0:02:21.3]}
11... c4 {[%clk 0:01:45.2]} 12. Nd2 {[%clk 0:02:21.4]} 12... Nxd2 {[%clk
0:01:41]} 13. Qxd2 {[%clk 0:02:22.3]} 13... Bxb5 {[%clk 0:01:20.8]} 14. axb5
{[%clk 0:02:23.2]} 14... Qxb5 {[%clk 0:01:21.6]} 15. b4 {[%clk 0:02:22.8]} 15...
Rfe8 {[%clk 0:01:12.8]} 16. Ra5 {[%clk 0:02:18.4]} 16... Qd7 {[%clk 0:01:11.4]}
17. Rfa1 {[%clk 0:02:15.9]} 17... Nc7 {[%clk 0:00:58.4]} 18. Rxa7 {[%clk
0:01:38.1]} 18... Rxa7 {[%clk 0:00:58.2]} 19. Rxa7 {[%clk 0:01:39]} 19... Nb5
{[%clk 0:00:58.8]} 20. Ra5 {[%clk 0:01:37.4]} 20... Qc6 {[%clk 0:00:48.4]} 21.
Bd1 {[%clk 0:01:35.8]} 21... b6 {[%clk 0:00:45.3]} 22. Ra2 {[%clk 0:01:23.3]}
22... Nd6 {[%clk 0:00:26.2]} 23. Bxd6 {[%clk 0:01:14]} 23... Qxd6 {[%clk
0:00:25.4]} 24. Bf3 {[%clk 0:01:03.9]} 24... e6 {[%clk 0:00:25.1]} 25. Ra7
{[%clk 0:01:03.2]} 25... h5 {[%clk 0:00:22.6]} 26. h4 {[%clk 0:01:02.3]} 26...
Bf6 {[%clk 0:00:22.5]} 27. g3 {[%clk 0:01:02.9]} 27... Re7 {[%clk 0:00:21.7]}
28. Ra8+ {[%clk 0:01:03.1]} 28... Kg7 {[%clk 0:00:21.7]} 29. Kg2 {[%clk
0:01:03.6]} 29... Qc6 {[%clk 0:00:21.5]} 30. Qa2 {[%clk 0:01:03.3]} 30... Re8
{[%clk 0:00:21.9]} 31. Ra7 {[%clk 0:01:00]} 31... Re7 {[%clk 0:00:20.6]} 32. Ra6
{[%clk 0:00:51.7]} 32... e5 {[%clk 0:00:19.3]} 33. dxe5 {[%clk 0:00:50.5]} 33...
Bxe5 {[%clk 0:00:19.5]} 34. Qd2 {[%clk 0:00:50.7]} 34... Rd7 {[%clk 0:00:18.4]}
35. Ra1 {[%clk 0:00:47.5]} 35... Qf6 {[%clk 0:00:17.8]} 36. Rc1 {[%clk
0:00:46.5]} 36... Qe6 {[%clk 0:00:17.5]} 37. Rd1 {[%clk 0:00:45.7]} 37... Qf6
{[%clk 0:00:18]} 38. Rc1 {[%clk 0:00:30.1]} 38... Qe6 {[%clk 0:00:18.6]} 39. Qc2
{[%clk 0:00:29.8]} 39... Qf6 {[%clk 0:00:18.4]} 40. Qb2 {[%clk 0:00:26.8]} 40...
b5 {[%clk 0:00:17.4]} 41. Qd2 {[%clk 0:00:26.2]} 41... Qe6 {[%clk 0:00:16.9]}
42. Qa2 {[%clk 0:00:25.3]} 42... Qf6 {[%clk 0:00:16.6]} 43. Qa3 {[%clk
0:00:25.9]} 43... Qb6 {[%clk 0:00:14.9]} 44. Rd1 {[%clk 0:00:25.5]} 44... Qf6
{[%clk 0:00:13.6]} 45. Qa5 {[%clk 0:00:21.9]} 45... Bxc3 {[%clk 0:00:12.9]} 46.
Qxb5 {[%clk 0:00:22.3]} 46... Rd6 {[%clk 0:00:11]} 47. Rxd5 {[%clk 0:00:19.6]}
47... Rxd5 {[%clk 0:00:06]} 48. Bxd5 {[%clk 0:00:19.9]} 48... Qd6 {[%clk
0:00:06.1]} 49. Qxc4 {[%clk 0:00:18.2]} 49... Qxb4 {[%clk 0:00:05]} 50. Qc7
{[%clk 0:00:16.2]} 1-0

[Event "*** Titled Tuesday Blitz"]
[Site "Chess.com"]
[Date "2021.03.30"]
[Round "2"]
[White "Fy_Rakotomaharo"]
[Black "crazyluzhinTh3"]
[Result "1/2-1/2"]
[WhiteElo "2711"]
[BlackElo "2502"]
[TimeControl "180+1"]
[EndTime "10:17:58 PDT"]
[Termination "Game drawn by agreement"]

1. e4 {[%clk 0:03:00.9]} 1... d6 {[%clk 0:02:59.9]} 2. d4 {[%clk 0:03:00.8]}
2... Nf6 {[%clk 0:03:00.5]} 3. Nc3 {[%clk 0:03:01.2]} 3... g6 {[%clk 0:03:00.7]}
4. Nf3 {[%clk 0:02:58.1]} 4... Bg7 {[%clk 0:03:00.4]} 5. Be3 {[%clk 0:02:58.7]}
5... c6 {[%clk 0:03:00.2]} 6. Qd2 {[%clk 0:02:55.2]} 6... Qa5 {[%clk 0:03:00.2]}
7. h3 {[%clk 0:02:50.8]} 7... O-O {[%clk 0:02:59.5]} 8. Bd3 {[%clk 0:02:47.7]}
8... Nbd7 {[%clk 0:02:59.3]} 9. O-O {[%clk 0:02:38.7]} 9... e5 {[%clk
0:02:59.8]} 10. Bh6 {[%clk 0:02:32.8]} 10... Re8 {[%clk 0:02:59.4]} 11. Bxg7
{[%clk 0:02:31.6]} 11... Kxg7 {[%clk 0:03:00.3]} 12. a3 {[%clk 0:02:21.4]} 12...
Nh5 {[%clk 0:02:51.4]} 13. b4 {[%clk 0:02:10.6]} 13... Qc7 {[%clk 0:02:51.3]}
14. Ne2 {[%clk 0:02:09.9]} 14... Ndf6 {[%clk 0:02:44]} 15. g4 {[%clk 0:02:04.6]}
15... Nxg4 {[%clk 0:02:40]} 16. hxg4 {[%clk 0:02:04.5]} 16... Bxg4 {[%clk
0:02:40.6]} 17. Nh2 {[%clk 0:01:55.1]} 17... Bxe2 {[%clk 0:02:39.1]} 18. Qxe2
{[%clk 0:01:55.5]} 18... Nf4 {[%clk 0:02:39.1]} 19. Qf3 {[%clk 0:01:54.4]} 19...
Qe7 {[%clk 0:02:36.7]} 20. Kh1 {[%clk 0:01:52.2]} 20... Qf6 {[%clk 0:02:36.9]}
21. dxe5 {[%clk 0:01:48.8]} 21... Rxe5 {[%clk 0:02:28.4]} 22. Rg1 {[%clk
0:01:46.7]} 22... Rh5 {[%clk 0:02:25.7]} 23. Qg3 {[%clk 0:01:32]} 23... Rh3
{[%clk 0:01:52.7]} 24. Qg5 {[%clk 0:01:31.2]} 24... Qxg5 {[%clk 0:01:50.5]} 25.
Rxg5 {[%clk 0:01:31.1]} 25... Nxd3 {[%clk 0:01:50.9]} 26. cxd3 {[%clk
0:01:30.7]} 26... Rxd3 {[%clk 0:01:51.8]} 27. Rg3 {[%clk 0:01:28]} 27... Rd2
{[%clk 0:01:42.7]} 28. Kg2 {[%clk 0:01:24.9]} 28... a5 {[%clk 0:01:42.8]} 29.
Rb3 {[%clk 0:01:15]} 29... axb4 {[%clk 0:01:40]} 30. Rxb4 {[%clk 0:01:15.9]}
30... b5 {[%clk 0:01:40]} 31. a4 {[%clk 0:01:13.1]} 31... bxa4 {[%clk
0:00:56.2]} 32. Rbxa4 {[%clk 0:01:11.2]} 32... Rb8 {[%clk 0:00:53.1]} 33. R1a2
{[%clk 0:01:08.9]} 33... Rxa2 {[%clk 0:00:49.7]} 34. Rxa2 {[%clk 0:01:08.4]}
34... Rb4 {[%clk 0:00:50.3]} 35. f3 {[%clk 0:01:06]} 35... d5 {[%clk 0:00:48.1]}
36. exd5 {[%clk 0:00:59.8]} 36... cxd5 {[%clk 0:00:49]} 37. Rd2 {[%clk
0:01:00.1]} 37... d4 {[%clk 0:00:46.7]} 38. Nf1 {[%clk 0:00:58.4]} 38... Kf6
{[%clk 0:00:45.4]} 39. Ng3 {[%clk 0:00:56.8]} 39... Ke5 {[%clk 0:00:44.6]} 40.
Ne4 {[%clk 0:00:54.6]} 40... f5 {[%clk 0:00:34.5]} 41. Nc5 {[%clk 0:00:54.9]}
41... Kd5 {[%clk 0:00:30.1]} 42. Nd3 {[%clk 0:00:54.4]} 42... Rb3 {[%clk
0:00:26.8]} 43. Kf2 {[%clk 0:00:54.8]} 43... g5 {[%clk 0:00:26.5]} 44. Ke2
{[%clk 0:00:54.2]} 44... h5 {[%clk 0:00:24.8]} 45. Ra2 {[%clk 0:00:49.7]} 45...
Rb5 {[%clk 0:00:23.3]} 46. Ra8 {[%clk 0:00:46.8]} 46... g4 {[%clk 0:00:21.1]}
47. Rd8+ {[%clk 0:00:40.3]} 47... Kc4 {[%clk 0:00:21.2]} 48. Rc8+ {[%clk
0:00:38.8]} 48... Kd5 {[%clk 0:00:21.3]} 49. Rh8 {[%clk 0:00:27.2]} 49... Ra5
{[%clk 0:00:19.8]} 50. Rxh5 {[%clk 0:00:19.3]} 50... Ra2+ {[%clk 0:00:20.3]} 51.
Kd1 {[%clk 0:00:19.9]} 51... Kc4 {[%clk 0:00:19.8]} 52. Ne5+ {[%clk 0:00:18.5]}
52... Kc3 {[%clk 0:00:19.7]} 53. fxg4 {[%clk 0:00:16.4]} 53... d3 {[%clk
0:00:17.9]} 54. Nxd3 {[%clk 0:00:16.7]} 54... Kxd3 {[%clk 0:00:16.6]} 55. Rh3+
{[%clk 0:00:17.3]} 55... Ke4 {[%clk 0:00:15.5]} 56. gxf5 {[%clk 0:00:17.8]}
56... Kxf5 {[%clk 0:00:16.1]} 57. Rh4 {[%clk 0:00:17.4]} 57... Kg5 {[%clk
0:00:15.9]} 58. Rb4 {[%clk 0:00:17.4]} 58... Ra5 {[%clk 0:00:15.6]} 59. Rc4
{[%clk 0:00:17]} 1/2-1/2

[Event "*** Titled Tuesday Blitz"]
[Site "Chess.com"]
[Date "2021.03.30"]
[Round "2"]
[White "nikitadovbnya2008"]
[Black "hypert"]
[Result "0-1"]
[WhiteElo "2196"]
[BlackElo "2524"]
[TimeControl "180+1"]
[EndTime "10:17:59 PDT"]
[Termination "hypert won by resignation"]

1. e4 {[%clk 0:03:00.9]} 1... c5 {[%clk 0:03:00]} 2. Nf3 {[%clk 0:02:59.1]} 2...
a6 {[%clk 0:03:00.3]} 3. c4 {[%clk 0:02:56.7]} 3... Nc6 {[%clk 0:02:58.1]} 4. d4
{[%clk 0:02:56.2]} 4... cxd4 {[%clk 0:02:57.4]} 5. Nxd4 {[%clk 0:02:57.1]} 5...
e5 {[%clk 0:02:57.5]} 6. Nf5 {[%clk 0:02:55.3]} 6... d6 {[%clk 0:02:56.4]} 7.
Nc3 {[%clk 0:02:54.1]} 7... Bxf5 {[%clk 0:02:55.8]} 8. exf5 {[%clk 0:02:54.3]}
8... Be7 {[%clk 0:02:56.1]} 9. Qg4 {[%clk 0:02:41.9]} 9... g6 {[%clk 0:02:53.3]}
10. fxg6 {[%clk 0:02:38.5]} 10... hxg6 {[%clk 0:02:54.2]} 11. Be3 {[%clk
0:02:38]} 11... Nf6 {[%clk 0:02:45]} 12. Qe2 {[%clk 0:02:37.3]} 12... Nd4 {[%clk
0:02:39]} 13. Bxd4 {[%clk 0:02:35.3]} 13... exd4 {[%clk 0:02:38.4]} 14. Ne4
{[%clk 0:02:26.6]} 14... Nxe4 {[%clk 0:02:32.4]} 15. Qxe4 {[%clk 0:02:27.5]}
15... Qa5+ {[%clk 0:02:32.3]} 16. Kd1 {[%clk 0:02:25.7]} 16... Qe5 {[%clk
0:02:28.8]} 17. Qxe5 {[%clk 0:02:05.6]} 17... dxe5 {[%clk 0:02:29.7]} 18. g4
{[%clk 0:02:02]} 18... Kd7 {[%clk 0:02:22.3]} 19. Bg2 {[%clk 0:02:02]} 19...
Rab8 {[%clk 0:02:17.5]} 20. h3 {[%clk 0:01:56.7]} 20... f5 {[%clk 0:02:14.6]}
21. Re1 {[%clk 0:01:53.8]} 21... Bf6 {[%clk 0:02:12]} 22. Kc2 {[%clk 0:01:49.2]}
22... e4 {[%clk 0:02:11.5]} 23. Rad1 {[%clk 0:01:46.4]} 23... d3+ {[%clk
0:02:10.7]} 24. Kb1 {[%clk 0:01:46.6]} 24... b5 {[%clk 0:02:03.1]} 25. c5 {[%clk
0:01:41.9]} 25... Bh4 {[%clk 0:01:59.3]} 26. Rf1 {[%clk 0:01:35.3]} 26... Rbd8
{[%clk 0:01:37.5]} 27. f3 {[%clk 0:01:34.5]} 27... Rhe8 {[%clk 0:01:20.8]} 28.
fxe4 {[%clk 0:01:32.5]} 28... fxe4 {[%clk 0:01:21.7]} 29. Rf4 {[%clk 0:01:31.5]}
29... Kc7 {[%clk 0:01:18.4]} 30. Bxe4 {[%clk 0:01:25.6]} 30... d2 {[%clk
0:01:11.3]} 31. Bxg6 {[%clk 0:01:12.2]} 31... Re5 {[%clk 0:00:58.9]} 32. b4
{[%clk 0:01:06.9]} 32... Be1 {[%clk 0:00:49.8]} 33. Kc2 {[%clk 0:01:04]} 33...
a5 {[%clk 0:00:47.3]} 34. a3 {[%clk 0:01:00.3]} 34... axb4 {[%clk 0:00:47]} 35.
axb4 {[%clk 0:01:01.2]} 35... Ra8 {[%clk 0:00:41.5]} 36. Rf7+ {[%clk 0:00:59.6]}
36... Kc6 {[%clk 0:00:41.7]} 37. Rf6+ {[%clk 0:00:44.7]} 37... Kd7 {[%clk
0:00:41.2]} 38. Rd6+ {[%clk 0:00:36.5]} 38... Ke7 {[%clk 0:00:40.7]} 39. Bd3
{[%clk 0:00:27.8]} 39... Re3 {[%clk 0:00:29.1]} 40. Bxb5 {[%clk 0:00:13.3]}
40... Ra2+ {[%clk 0:00:24.4]} 41. Kb1 {[%clk 0:00:13.7]} 41... Rea3 {[%clk
0:00:23.9]} 42. Rd7+ {[%clk 0:00:04.1]} 42... Kf6 {[%clk 0:00:22.3]} 43. Rd6+
{[%clk 0:00:03.4]} 43... Kg5 {[%clk 0:00:21.4]} 44. Rd5+ {[%clk 0:00:02]} 44...
Kh4 {[%clk 0:00:20.5]} 45. Rh5+ {[%clk 0:00:01.9]} 45... Kg3 {[%clk 0:00:21]}
46. Rd5 {[%clk 0:00:02]} 46... Ra1+ {[%clk 0:00:20.8]} 47. Kc2 {[%clk
0:00:02.3]} 47... R3a2+ {[%clk 0:00:21.3]} 48. Kd3 {[%clk 0:00:02.6]} 48... Rxd1
{[%clk 0:00:21.3]} 49. Bc4 {[%clk 0:00:01.8]} 49... Ra3+ {[%clk 0:00:21.3]} 50.
Ke2 {[%clk 0:00:01.9]} 50... Rc1 {[%clk 0:00:20.1]} 51. Bd3 {[%clk 0:00:01.6]}
51... d1=Q+ {[%clk 0:00:17.5]} 0-1

[Event "*** Titled Tuesday Blitz"]
[Site "Chess.com"]
[Date "2021.03.30"]
[Round "2"]
[White "MasterMK73"]
[Black "banane_verte"]
[Result "1-0"]
[WhiteElo "2279"]
[BlackElo "2446"]
[TimeControl "180+1"]
[EndTime "10:18:00 PDT"]
[Termination "MasterMK73 won by checkmate"]

1. e4 {[%clk 0:03:00.9]} 1... d5 {[%clk 0:02:53.2]} 2. exd5 {[%clk 0:02:57.5]}
2... Qxd5 {[%clk 0:02:54.1]} 3. Nc3 {[%clk 0:02:56.2]} 3... Qa5 {[%clk
0:02:53.9]} 4. Nf3 {[%clk 0:02:52.4]} 4... Nf6 {[%clk 0:02:54.1]} 5. d4 {[%clk
0:02:46.7]} 5... Nc6 {[%clk 0:02:51.9]} 6. Be2 {[%clk 0:02:42.8]} 6... Bg4
{[%clk 0:02:51.3]} 7. O-O {[%clk 0:02:41.9]} 7... O-O-O {[%clk 0:02:49.2]} 8.
Be3 {[%clk 0:02:33.5]} 8... e5 {[%clk 0:02:48.8]} 9. d5 {[%clk 0:02:17.9]} 9...
Nxd5 {[%clk 0:02:46.8]} 10. Nxd5 {[%clk 0:02:17]} 10... Qxd5 {[%clk 0:02:47.7]}
11. Qe1 {[%clk 0:02:04.5]} 11... Be7 {[%clk 0:02:36.4]} 12. h3 {[%clk
0:01:46.7]} 12... Bh5 {[%clk 0:02:24.9]} 13. a3 {[%clk 0:01:45.2]} 13... Qa5
{[%clk 0:02:17.5]} 14. b4 {[%clk 0:01:40.4]} 14... Qd5 {[%clk 0:02:17.3]} 15. c4
{[%clk 0:01:37.9]} 15... Qd7 {[%clk 0:01:54.3]} 16. b5 {[%clk 0:01:35]} 16...
Bxf3 {[%clk 0:01:50.7]} 17. Bxf3 {[%clk 0:01:28.2]} 17... Nd4 {[%clk 0:01:51.6]}
18. Bd1 {[%clk 0:01:01]} 18... f6 {[%clk 0:01:49]} 19. a4 {[%clk 0:00:48.4]}
19... Bc5 {[%clk 0:01:43]} 20. a5 {[%clk 0:00:45.2]} 20... Ne6 {[%clk
0:01:39.6]} 21. Bg4 {[%clk 0:00:37.7]} 21... Bxe3 {[%clk 0:01:39.4]} 22. Qxe3
{[%clk 0:00:36.8]} 22... Kb8 {[%clk 0:01:39.4]} 23. a6 {[%clk 0:00:31.1]} 23...
Qe7 {[%clk 0:01:34.1]} 24. axb7 {[%clk 0:00:28.4]} 24... Nd4 {[%clk 0:01:33.9]}
25. Qc3 {[%clk 0:00:21.1]} 25... h5 {[%clk 0:01:29.9]} 26. Bd1 {[%clk
0:00:19.2]} 26... Qc5 {[%clk 0:01:15.4]} 27. Ra6 {[%clk 0:00:14.8]} 27... Rd6
{[%clk 0:01:13.7]} 28. Re1 {[%clk 0:00:13]} 28... Rhd8 {[%clk 0:01:11.7]} 29.
Bxh5 {[%clk 0:00:10.8]} 29... Rxa6 {[%clk 0:01:10]} 30. bxa6 {[%clk 0:00:09.9]}
30... Qb6 {[%clk 0:01:10.7]} 31. c5 {[%clk 0:00:08.8]} 31... Qxa6 {[%clk
0:01:09.6]} 32. Qb2 {[%clk 0:00:07.1]} 32... Qc6 {[%clk 0:00:55.3]} 33. Ra1
{[%clk 0:00:06.4]} 33... Qxc5 {[%clk 0:00:54.9]} 34. Qa2 {[%clk 0:00:06.1]}
34... Nc6 {[%clk 0:00:48.8]} 35. Bf3 {[%clk 0:00:05.7]} 35... Nd4 {[%clk
0:00:48.8]} 36. Qb2 {[%clk 0:00:03.8]} 36... Nxf3+ {[%clk 0:00:48.4]} 37. gxf3
{[%clk 0:00:03.1]} 37... Qb6 {[%clk 0:00:49.3]} 38. Qa3 {[%clk 0:00:01.7]} 38...
Rd6 {[%clk 0:00:48.8]} 39. Qa2 {[%clk 0:00:01.6]} 39... Qc6 {[%clk 0:00:45.9]}
40. Rb1 {[%clk 0:00:01.8]} 40... a6 {[%clk 0:00:44.4]} 41. Qg8+ {[%clk
0:00:01.6]} 41... Qe8 {[%clk 0:00:10.2]} 42. Qxe8+ {[%clk 0:00:01.2]} 42... Rd8
{[%clk 0:00:10.8]} 43. Qxd8+ {[%clk 0:00:01.1]} 43... Ka7 {[%clk 0:00:11.7]} 44.
Qa8# {[%clk 0:00:01.3]} 1-0

[Event "*** Titled Tuesday Blitz"]
[Site "Chess.com"]
[Date "2021.03.30"]
[Round "2"]
[White "GM_Crest"]
[Black "ChronicUnhappiness"]
[Result "1-0"]
[WhiteElo "2731"]
[BlackElo "2347"]
[TimeControl "180+1"]
[EndTime "10:18:02 PDT"]
[Termination "GM_Crest won by resignation"]

1. d4 {[%clk 0:03:00.9]} 1... d5 {[%clk 0:02:59.5]} 2. c4 {[%clk 0:03:00.2]}
2... e6 {[%clk 0:02:59.4]} 3. Nc3 {[%clk 0:02:59.7]} 3... Bb4 {[%clk 0:02:59.2]}
4. a3 {[%clk 0:02:58.6]} 4... Bxc3+ {[%clk 0:02:58.6]} 5. bxc3 {[%clk
0:02:59.2]} 5... c5 {[%clk 0:02:59.3]} 6. cxd5 {[%clk 0:02:59]} 6... exd5 {[%clk
0:02:59]} 7. e3 {[%clk 0:02:59.3]} 7... Nc6 {[%clk 0:02:58.8]} 8. Bd3 {[%clk
0:02:59.4]} 8... Nge7 {[%clk 0:02:56.6]} 9. Ne2 {[%clk 0:02:59.5]} 9... Bf5
{[%clk 0:02:55.4]} 10. O-O {[%clk 0:02:55.6]} 10... c4 {[%clk 0:02:53.6]} 11.
Bxf5 {[%clk 0:02:54.3]} 11... Nxf5 {[%clk 0:02:54.5]} 12. a4 {[%clk 0:02:15.7]}
12... O-O {[%clk 0:02:53.6]} 13. Ba3 {[%clk 0:02:15.4]} 13... Re8 {[%clk
0:02:53.8]} 14. Nf4 {[%clk 0:02:15.1]} 14... Nd6 {[%clk 0:02:09.5]} 15. Qc2
{[%clk 0:01:30.4]} 15... Ne4 {[%clk 0:02:01.6]} 16. f3 {[%clk 0:01:30]} 16...
Nf6 {[%clk 0:02:01.7]} 17. Rae1 {[%clk 0:01:29.5]} 17... Qc7 {[%clk 0:01:32.3]}
18. g3 {[%clk 0:01:24.4]} 18... Ne7 {[%clk 0:00:56.2]} 19. e4 {[%clk 0:01:24.1]}
19... Ng6 {[%clk 0:00:56.3]} 20. Nxg6 {[%clk 0:01:19.7]} 20... hxg6 {[%clk
0:00:55.4]} 21. e5 {[%clk 0:01:20.1]} 21... Nd7 {[%clk 0:00:54]} 22. f4 {[%clk
0:01:20.4]} 22... Qc6 {[%clk 0:00:48.8]} 23. g4 {[%clk 0:01:12.4]} 23... Nb6
{[%clk 0:00:29.8]} 24. a5 {[%clk 0:01:11.6]} 24... Qa4 {[%clk 0:00:29.3]} 25.
Qb2 {[%clk 0:01:08.9]} 25... Qxa5 {[%clk 0:00:27]} 26. Bb4 {[%clk 0:00:47.3]}
26... Qb5 {[%clk 0:00:25.6]} 27. f5 {[%clk 0:00:47.9]} 27... a5 {[%clk
0:00:25.3]} 28. fxg6 {[%clk 0:00:47.5]} 28... fxg6 {[%clk 0:00:24.4]} 29. Qf2
{[%clk 0:00:47.6]} 29... Qd7 {[%clk 0:00:11.4]} 30. Ba3 {[%clk 0:00:44.7]} 30...
a4 {[%clk 0:00:07.1]} 31. Qf4 {[%clk 0:00:42.4]} 31... Qe6 {[%clk 0:00:07.3]}
32. Qg5 {[%clk 0:00:41.7]} 32... Rac8 {[%clk 0:00:07.5]} 33. Rf3 {[%clk
0:00:41.9]} 33... Rc7 {[%clk 0:00:07.6]} 34. Rh3 {[%clk 0:00:41.2]} 34... Rf7
{[%clk 0:00:02.2]} 35. Qh4 {[%clk 0:00:41.2]} 35... Rf4 {[%clk 0:00:02.8]} 36.
Qh7+ {[%clk 0:00:28.4]} 36... Kf7 {[%clk 0:00:02.9]} 37. Rg3 {[%clk 0:00:29]}
37... Rf8 {[%clk 0:00:01.7]} 38. Bxf8 {[%clk 0:00:26.6]} 38... Kxf8 {[%clk
0:00:02.6]} 39. Qh8+ {[%clk 0:00:20.8]} 39... Kf7 {[%clk 0:00:02.3]} 40. Qb8
{[%clk 0:00:12.5]} 40... Nd7 {[%clk 0:00:02.6]} 41. Qxb7 {[%clk 0:00:12.2]}
41... g5 {[%clk 0:00:02.7]} 42. h3 {[%clk 0:00:11.5]} 42... Kg6 {[%clk
0:00:02.9]} 43. Ra1 {[%clk 0:00:10.8]} 43... Qf7 {[%clk 0:00:02.8]} 44. Qc6+
{[%clk 0:00:09.3]} 44... Kh7 {[%clk 0:00:03]} 45. e6 {[%clk 0:00:09.8]} 45...
Qf6 {[%clk 0:00:03.4]} 46. Qxd7 {[%clk 0:00:09.6]} 46... Rf2 {[%clk 0:00:03.1]}
47. e7 {[%clk 0:00:09.6]} 47... Qf4 {[%clk 0:00:02.9]} 48. Qf5+ {[%clk
0:00:09.5]} 48... Qxf5 {[%clk 0:00:02.9]} 49. gxf5 {[%clk 0:00:09.9]} 49... Rb2
{[%clk 0:00:03.6]} 50. e8=Q {[%clk 0:00:09.4]} 50... Rb3 {[%clk 0:00:04.5]} 51.
Qg6+ {[%clk 0:00:09]} 1-0